Workbook

Sheet RelicattributeConfig
A1: ID[csknu] | B1: name[ct] | C1: difficulty[csn] | D1: levelsType[csn] | E1: professionType[cn] | F1: type[cn] | G1: HP[cn] | H1: attack[cn] | I1: spellAttack[cn] | J1: realAttack[cn] | K1: attackSpeed[cn] | L1: attackCrit[cn] | M1: critNum[cn] | N1: defense[cn] | O1: spellDefense[cn] | P1: hit[cn] | Q1: dodge[cn]
A2: ID区间(6-8w) | B2: 名称 | C2: 难度 | D2: 关卡类型 | E2: 职业类型 | F2: 类型 | G2: 血量 | H2: 攻击力 | I2: 法术攻击力 | J2: 真实攻击力 | K2: 攻击速度‱(5000-50000) | L2: 攻击暴击率‱ | M2: 暴击倍数‱ | N2: 防御力 | O2: 法术防御力 | P2: 命中‱ | Q2: 攻击闪避‱
A3: 90001 | B3: 难度1_普通关_物理小怪属性 | C3: 1 | D3: 1 | E3: 1 | F3: 21 | G3: 300 | H3: 45 | I3: 0 | J3: 0 | K3: 10000 | L3: 300 | M3: 15000 | N3: 10 | O3: 10 | P3: 500 | Q3: 1000
A4: 90002 | B4: 难度1_普通关_法术小怪属性 | C4: 1 | D4: 1 | E4: 2 | F4: 21 | G4: 200 | H4: 0 | I4: 35 | J4: 0 | K4: 10000 | L4: 300 | M4: 15000 | N4: 10 | O4: 10 | P4: 500 | Q4: 1000
A5: 90003 | B5: 难度1_普通关_物理精英属性 | C5: 1 | D5: 1 | E5: 1 | F5: 22 | G5: 600 | H5: 66 | I5: 0 | J5: 0 | K5: 10000 | L5: 300 | M5: 15000 | N5: 18 | O5: 18 | P5: 500 | Q5: 1000
A6: 90004 | B6: 难度1_普通关_法术精英属性 | C6: 1 | D6: 1 | E6: 1 | F6: 22 | G6: 600 | H6: 0 | I6: 66 | J6: 0 | K6: 10000 | L6: 300 | M6: 15000 | N6: 18 | O6: 18 | P6: 500 | Q6: 1000
A7: 90005 | B7: 难度1_普通关_物理boss属性 | C7: 1 | D7: 1 | E7: 1 | F7: 23 | G7: 4200 | H7: 78 | I7: 0 | J7: 0 | K7: 10000 | L7: 300 | M7: 15000 | N7: 18 | O7: 18 | P7: 500 | Q7: 1000
A8: 90006 | B8: 难度1_普通关_法术boss属性 | C8: 1 | D8: 1 | E8: 2 | F8: 23 | G8: 1845 | H8: 0 | I8: 68 | J8: 0 | K8: 10000 | L8: 300 | M8: 15000 | N8: 18 | O8: 18 | P8: 500 | Q8: 1000
A9: 90007 | B9: 难度1_精英关_物理小怪属性 | C9: 1 | D9: 2 | E9: 1 | F9: 21 | G9: =FLOOR(G3*1.15,1) -> 345 | H9: =FLOOR(H3*1.1,1) -> 49 | I9: 0 | J9: 0 | K9: 10000 | L9: 300 | M9: 15000 | N9: 10 | O9: 10 | P9: 500 | Q9: 1000
A10: 90008 | B10: 难度1_精英关_法术小怪属性 | C10: 1 | D10: 2 | E10: 2 | F10: 21 | G10: 230 | H10: 0 | I10: =FLOOR(I4*1.1,1) -> 38 | J10: 0 | K10: 10000 | L10: 300 | M10: 15000 | N10: 10 | O10: 10 | P10: 500 | Q10: 1000
A11: 90009 | B11: 难度1_精英关_物理精英属性 | C11: 1 | D11: 2 | E11: 1 | F11: 22 | G11: 690 | H11: =FLOOR(H5*1.1,1) -> 72 | I11: 0 | J11: 0 | K11: 10000 | L11: 300 | M11: 15000 | N11: 18 | O11: 18 | P11: 500 | Q11: 1000
A12: 90010 | B12: 难度1_精英关_法术精英属性 | C12: 1 | D12: 2 | E12: 1 | F12: 22 | G12: 690 | H12: =FLOOR(H6*1.1,1) -> 0 | I12: 72 | J12: 0 | K12: 10000 | L12: 300 | M12: 15000 | N12: 18 | O12: 18 | P12: 500 | Q12: 1000
A13: 90011 | B13: 难度1_精英关_物理boss属性 | C13: 1 | D13: 2 | E13: 1 | F13: 23 | G13: 4830 | H13: =FLOOR(H7*1.1,1) -> 85 | I13: 0 | J13: 0 | K13: 10000 | L13: 300 | M13: 15000 | N13: 22 | O13: 22 | P13: 500 | Q13: 1000
A14: 90012 | B14: 难度1_精英关_法术boss属性 | C14: 1 | D14: 2 | E14: 2 | F14: 23 | G14: 2121 | H14: 0 | I14: =FLOOR(I8*1.1,1) -> 74 | J14: 0 | K14: 10000 | L14: 300 | M14: 15000 | N14: 20 | O14: 20 | P14: 500 | Q14: 1000
A15: 90013 | B15: 难度1_BOSS关_物理小怪属性 | C15: 1 | D15: 7 | E15: 1 | F15: 21 | G15: 396 | H15: =FLOOR(H9*1.1,1) -> 53 | I15: 0 | J15: 0 | K15: 10000 | L15: 300 | M15: 15000 | N15: 10 | O15: 10 | P15: 500 | Q15: 1000
A16: 90014 | B16: 难度1_BOSS关_法术小怪属性 | C16: 1 | D16: 7 | E16: 2 | F16: 21 | G16: 264 | H16: 0 | I16: =FLOOR(I10*1.1,1) -> 41 | J16: 0 | K16: 10000 | L16: 300 | M16: 15000 | N16: 10 | O16: 10 | P16: 500 | Q16: 1000
A17: 90015 | B17: 难度1_BOSS关_物理精英属性 | C17: 1 | D17: 7 | E17: 1 | F17: 22 | G17: 793 | H17: =FLOOR(H11*1.1,1) -> 79 | I17: 0 | J17: 0 | K17: 10000 | L17: 300 | M17: 15000 | N17: 18 | O17: 18 | P17: 500 | Q17: 1000
A18: 90016 | B18: 难度1_BOSS关_法术精英属性 | C18: 1 | D18: 7 | E18: 1 | F18: 22 | G18: 793 | H18: =FLOOR(H12*1.1,1) -> 0 | I18: 79 | J18: 0 | K18: 10000 | L18: 300 | M18: 15000 | N18: 18 | O18: 18 | P18: 500 | Q18: 1000
A19: 90017 | B19: 难度1_BOSS关_物理boss属性 | C19: 1 | D19: 7 | E19: 1 | F19: 23 | G19: 5554 | H19: =FLOOR(H13*1.1,1) -> 93 | I19: 0 | J19: 0 | K19: 10000 | L19: 300 | M19: 15000 | N19: 22 | O19: 22 | P19: 500 | Q19: 1000
A20: 90018 | B20: 难度1_BOSS关_法术boss属性 | C20: 1 | D20: 7 | E20: 2 | F20: 23 | G20: 2439 | H20: 0 | I20: =FLOOR(I14*1.1,1) -> 81 | J20: 0 | K20: 10000 | L20: 300 | M20: 15000 | N20: 20 | O20: 20 | P20: 500 | Q20: 1000
A21: 90019 | B21: 难度1_驻守关_物理怪属性 | C21: 1 | D21: 3 | E21: 1 | F21: 22 | G21: =FLOOR(G19*1.15,1) -> 6387 | H21: =FLOOR(H19*1.1,1) -> 102 | I21: 0 | J21: 0 | K21: 10000 | L21: 300 | M21: 15000 | N21: 22 | O21: 22 | P21: 500 | Q21: 1000
A22: 90020 | B22: 难度1_驻守关_法术怪属性 | C22: 1 | D22: 3 | E22: 2 | F22: 22 | G22: =FLOOR(G20*1.15,1) -> 2804 | H22: 0 | I22: =FLOOR(I20*1.1,1) -> 89 | J22: 0 | K22: 10000 | L22: 300 | M22: 15000 | N22: 20 | O22: 20 | P22: 500 | Q22: 1000
A23: 90021 | B23: 难度1_驻守关_物理boss属性 | C23: 1 | D23: 3 | E23: 1 | F23: 23 | G23: =FLOOR(G21*1.15,1) -> 7345 | H23: =FLOOR(H21*1.1,1) -> 112 | I23: 0 | J23: 0 | K23: 10000 | L23: 300 | M23: 15000 | N23: 22 | O23: 22 | P23: 500 | Q23: 1000
A24: 90022 | B24: 难度1_驻守关_法术boss属性 | C24: 1 | D24: 3 | E24: 2 | F24: 23 | G24: =FLOOR(G22*1.15,1) -> 3224 | H24: 0 | I24: =FLOOR(I22*1.1,1) -> 97 | J24: 0 | K24: 10000 | L24: 300 | M24: 15000 | N24: 20 | O24: 20 | P24: 500 | Q24: 1000
A25: 90101 | B25: 难度2_普通关_物理小怪属性 | C25: 2 | D25: 1 | E25: 1 | F25: 21 | G25: =FLOOR(G3*1.4,1) -> 420 | H25: =FLOOR(H3*1.2,1) -> 54 | I25: 0 | J25: 0 | K25: 10000 | L25: 300 | M25: 15000 | N25: =FLOOR(N3*1.3,1) -> 13 | O25: 13 | P25: 500 | Q25: 1000
A26: 90102 | B26: 难度2_普通关_法术小怪属性 | C26: 2 | D26: 1 | E26: 2 | F26: 21 | G26: =FLOOR(G4*1.4,1) -> 280 | H26: 0 | I26: =FLOOR(I4*1.2,1) -> 42 | J26: 0 | K26: 10000 | L26: 300 | M26: 15000 | N26: 13 | O26: 13 | P26: 500 | Q26: 1000
A27: 90103 | B27: 难度2_普通关_物理精英属性 | C27: 2 | D27: 1 | E27: 1 | F27: 22 | G27: 840 | H27: =FLOOR(H5*1.2,1) -> 79 | I27: 0 | J27: 0 | K27: 10000 | L27: 300 | M27: 15000 | N27: 23 | O27: 23 | P27: 500 | Q27: 1000
A28: 90104 | B28: 难度2_普通关_法术精英属性 | C28: 2 | D28: 1 | E28: 1 | F28: 22 | G28: 840 | H28: =FLOOR(H6*1.2,1) -> 0 | I28: 79 | J28: 0 | K28: 10000 | L28: 300 | M28: 15000 | N28: 23 | O28: 23 | P28: 500 | Q28: 1000
A29: 90105 | B29: 难度2_普通关_物理boss属性 | C29: 2 | D29: 1 | E29: 1 | F29: 23 | G29: 5880 | H29: =FLOOR(H7*1.2,1) -> 93 | I29: 0 | J29: 0 | K29: 10000 | L29: 300 | M29: 15000 | N29: 23 | O29: 23 | P29: 500 | Q29: 1000
A30: 90106 | B30: 难度2_普通关_法术boss属性 | C30: 2 | D30: 1 | E30: 2 | F30: 23 | G30: 2583 | H30: 0 | I30: =FLOOR(I8*1.2,1) -> 81 | J30: 0 | K30: 10000 | L30: 300 | M30: 15000 | N30: 23 | O30: 23 | P30: 500 | Q30: 1000
A31: 90107 | B31: 难度2_精英关_物理小怪属性 | C31: 2 | D31: 2 | E31: 1 | F31: 21 | G31: 483 | H31: =FLOOR(H25*1.1,1) -> 59 | I31: 0 | J31: 0 | K31: 10000 | L31: 300 | M31: 15000 | N31: 13 | O31: 13 | P31: 500 | Q31: 1000
A32: 90108 | B32: 难度2_精英关_法术小怪属性 | C32: 2 | D32: 2 | E32: 2 | F32: 21 | G32: 322 | H32: 0 | I32: =FLOOR(I26*1.1,1) -> 46 | J32: 0 | K32: 10000 | L32: 300 | M32: 15000 | N32: 13 | O32: 13 | P32: 500 | Q32: 1000
A33: 90109 | B33: 难度2_精英关_物理精英属性 | C33: 2 | D33: 2 | E33: 1 | F33: 22 | G33: 966 | H33: =FLOOR(H27*1.1,1) -> 86 | I33: 0 | J33: 0 | K33: 10000 | L33: 300 | M33: 15000 | N33: 23 | O33: 23 | P33: 500 | Q33: 1000
A34: 90110 | B34: 难度2_精英关_法术精英属性 | C34: 2 | D34: 2 | E34: 1 | F34: 22 | G34: 966 | H34: =FLOOR(H28*1.1,1) -> 0 | I34: 86 | J34: 0 | K34: 10000 | L34: 300 | M34: 15000 | N34: 23 | O34: 23 | P34: 500 | Q34: 1000
A35: 90111 | B35: 难度2_精英关_物理boss属性 | C35: 2 | D35: 2 | E35: 1 | F35: 23 | G35: 6762 | H35: =FLOOR(H29*1.1,1) -> 102 | I35: 0 | J35: 0 | K35: 10000 | L35: 300 | M35: 15000 | N35: 28 | O35: 28 | P35: 500 | Q35: 1000
A36: 90112 | B36: 难度2_精英关_法术boss属性 | C36: 2 | D36: 2 | E36: 2 | F36: 23 | G36: 2969 | H36: 0 | I36: =FLOOR(I30*1.1,1) -> 89 | J36: 0 | K36: 10000 | L36: 300 | M36: 15000 | N36: 26 | O36: 26 | P36: 500 | Q36: 1000
A37: 90113 | B37: 难度2_BOSS关_物理小怪属性 | C37: 2 | D37: 7 | E37: 1 | F37: 21 | G37: 554 | H37: =FLOOR(H31*1.1,1) -> 64 | I37: 0 | J37: 0 | K37: 10000 | L37: 300 | M37: 15000 | N37: 13 | O37: 13 | P37: 500 | Q37: 1000
A38: 90114 | B38: 难度2_BOSS关_法术小怪属性 | C38: 2 | D38: 7 | E38: 2 | F38: 21 | G38: 369 | H38: 0 | I38: =FLOOR(I32*1.1,1) -> 50 | J38: 0 | K38: 10000 | L38: 300 | M38: 15000 | N38: 13 | O38: 13 | P38: 500 | Q38: 1000
A39: 90115 | B39: 难度2_BOSS关_物理精英属性 | C39: 2 | D39: 7 | E39: 1 | F39: 22 | G39: 1110 | H39: =FLOOR(H33*1.1,1) -> 94 | I39: 0 | J39: 0 | K39: 10000 | L39: 300 | M39: 15000 | N39: 23 | O39: 23 | P39: 500 | Q39: 1000
A40: 90116 | B40: 难度2_BOSS关_法术精英属性 | C40: 2 | D40: 7 | E40: 1 | F40: 22 | G40: 1110 | H40: =FLOOR(H34*1.1,1) -> 0 | I40: 94 | J40: 0 | K40: 10000 | L40: 300 | M40: 15000 | N40: 23 | O40: 23 | P40: 500 | Q40: 1000
A41: 90117 | B41: 难度2_BOSS关_物理boss属性 | C41: 2 | D41: 7 | E41: 1 | F41: 23 | G41: 7775 | H41: =FLOOR(H35*1.1,1) -> 112 | I41: 0 | J41: 0 | K41: 10000 | L41: 300 | M41: 15000 | N41: 28 | O41: 28 | P41: 500 | Q41: 1000
A42: 90118 | B42: 难度2_BOSS关_法术boss属性 | C42: 2 | D42: 7 | E42: 2 | F42: 23 | G42: 3414 | H42: 0 | I42: =FLOOR(I36*1.1,1) -> 97 | J42: 0 | K42: 10000 | L42: 300 | M42: 15000 | N42: 26 | O42: 26 | P42: 500 | Q42: 1000
A43: 90119 | B43: 难度2_驻守关_物理怪属性 | C43: 2 | D43: 3 | E43: 1 | F43: 22 | G43: 8941 | H43: =FLOOR(H41*1.1,1) -> 123 | I43: 0 | J43: 0 | K43: 10000 | L43: 300 | M43: 15000 | N43: 28 | O43: 28 | P43: 500 | Q43: 1000
A44: 90120 | B44: 难度2_驻守关_法术怪属性 | C44: 2 | D44: 3 | E44: 2 | F44: 22 | G44: 3925 | H44: 0 | I44: =FLOOR(I42*1.1,1) -> 106 | J44: 0 | K44: 10000 | L44: 300 | M44: 15000 | N44: 26 | O44: 26 | P44: 500 | Q44: 1000
A45: 90121 | B45: 难度2_驻守关_物理boss属性 | C45: 2 | D45: 3 | E45: 1 | F45: 23 | G45: 10283 | H45: =FLOOR(H43*1.1,1) -> 135 | I45: 0 | J45: 0 | K45: 10000 | L45: 300 | M45: 15000 | N45: 28 | O45: 28 | P45: 500 | Q45: 1000
A46: 90122 | B46: 难度2_驻守关_法术boss属性 | C46: 2 | D46: 3 | E46: 2 | F46: 23 | G46: 4513 | H46: 0 | I46: =FLOOR(I44*1.1,1) -> 116 | J46: 0 | K46: 10000 | L46: 300 | M46: 15000 | N46: 26 | O46: 26 | P46: 500 | Q46: 1000
A47: 90201 | B47: 难度3_普通关_物理小怪属性 | C47: 3 | D47: 1 | E47: 1 | F47: 21 | G47: =FLOOR(G25*1.6,1) -> 672 | H47: =FLOOR(H25*1.3,1) -> 70 | I47: 0 | J47: 0 | K47: 10000 | L47: 300 | M47: 15000 | N47: =FLOOR(N25*1.3,1) -> 16 | O47: 16 | P47: 500 | Q47: 1000
A48: 90202 | B48: 难度3_普通关_法术小怪属性 | C48: 3 | D48: 1 | E48: 2 | F48: 21 | G48: =FLOOR(G26*1.6,1) -> 448 | H48: 0 | I48: =FLOOR(I26*1.3,1) -> 54 | J48: 0 | K48: 10000 | L48: 300 | M48: 15000 | N48: =FLOOR(N26*1.3,1) -> 16 | O48: 16 | P48: 500 | Q48: 1000
A49: 90203 | B49: 难度3_普通关_物理精英属性 | C49: 3 | D49: 1 | E49: 1 | F49: 22 | G49: 1344 | H49: =FLOOR(H27*1.3,1) -> 102 | I49: 0 | J49: 0 | K49: 10000 | L49: 300 | M49: 15000 | N49: =FLOOR(N27*1.3,1) -> 29 | O49: =FLOOR(O27*1.3,1) -> 29 | P49: 500 | Q49: 1000
A50: 90204 | B50: 难度3_普通关_法术精英属性 | C50: 3 | D50: 1 | E50: 1 | F50: 22 | G50: 1344 | H50: =FLOOR(H28*1.3,1) -> 0 | I50: 102 | J50: 0 | K50: 10000 | L50: 300 | M50: 15000 | N50: =FLOOR(N28*1.3,1) -> 29 | O50: =FLOOR(O28*1.3,1) -> 29 | P50: 500 | Q50: 1000
A51: 90205 | B51: 难度3_普通关_物理boss属性 | C51: 3 | D51: 1 | E51: 1 | F51: 23 | G51: 9408 | H51: =FLOOR(H29*1.3,1) -> 120 | I51: 0 | J51: 0 | K51: 10000 | L51: 300 | M51: 15000 | N51: =FLOOR(N29*1.3,1) -> 29 | O51: 29 | P51: 500 | Q51: 1000
A52: 90206 | B52: 难度3_普通关_法术boss属性 | C52: 3 | D52: 1 | E52: 2 | F52: 23 | G52: 4132 | H52: 0 | I52: =FLOOR(I30*1.3,1) -> 105 | J52: 0 | K52: 10000 | L52: 300 | M52: 15000 | N52: =FLOOR(N30*1.3,1) -> 29 | O52: 29 | P52: 500 | Q52: 1000
A53: 90207 | B53: 难度3_精英关_物理小怪属性 | C53: 3 | D53: 2 | E53: 1 | F53: 21 | G53: 772 | H53: =FLOOR(H47*1.1,1) -> 77 | I53: 0 | J53: 0 | K53: 10000 | L53: 300 | M53: 15000 | N53: =FLOOR(N31*1.3,1) -> 16 | O53: 16 | P53: 500 | Q53: 1000
A54: 90208 | B54: 难度3_精英关_法术小怪属性 | C54: 3 | D54: 2 | E54: 2 | F54: 21 | G54: 515 | H54: 0 | I54: =FLOOR(I48*1.1,1) -> 59 | J54: 0 | K54: 10000 | L54: 300 | M54: 15000 | N54: =FLOOR(N32*1.3,1) -> 16 | O54: 16 | P54: 500 | Q54: 1000
A55: 90209 | B55: 难度3_精英关_物理精英属性 | C55: 3 | D55: 2 | E55: 1 | F55: 22 | G55: 1545 | H55: =FLOOR(H49*1.1,1) -> 112 | I55: 0 | J55: 0 | K55: 10000 | L55: 300 | M55: 15000 | N55: =FLOOR(N33*1.3,1) -> 29 | O55: =FLOOR(O33*1.3,1) -> 29 | P55: 500 | Q55: 1000
A56: 90210 | B56: 难度3_精英关_法术精英属性 | C56: 3 | D56: 2 | E56: 1 | F56: 22 | G56: 1545 | H56: =FLOOR(H50*1.1,1) -> 0 | I56: 112 | J56: 0 | K56: 10000 | L56: 300 | M56: 15000 | N56: =FLOOR(N34*1.3,1) -> 29 | O56: =FLOOR(O34*1.3,1) -> 29 | P56: 500 | Q56: 1000
A57: 90211 | B57: 难度3_精英关_物理boss属性 | C57: 3 | D57: 2 | E57: 1 | F57: 23 | G57: 10819 | H57: =FLOOR(H51*1.1,1) -> 132 | I57: 0 | J57: 0 | K57: 10000 | L57: 300 | M57: 15000 | N57: =FLOOR(N35*1.3,1) -> 36 | O57: 36 | P57: 500 | Q57: 1000
A58: 90212 | B58: 难度3_精英关_法术boss属性 | C58: 3 | D58: 2 | E58: 2 | F58: 23 | G58: 4750 | H58: 0 | I58: =FLOOR(I52*1.1,1) -> 115 | J58: 0 | K58: 10000 | L58: 300 | M58: 15000 | N58: =FLOOR(N36*1.3,1) -> 33 | O58: 33 | P58: 500 | Q58: 1000
A59: 90213 | B59: 难度3_BOSS关_物理小怪属性 | C59: 3 | D59: 7 | E59: 1 | F59: 21 | G59: 886 | H59: =FLOOR(H53*1.1,1) -> 84 | I59: 0 | J59: 0 | K59: 10000 | L59: 300 | M59: 15000 | N59: =FLOOR(N37*1.3,1) -> 16 | O59: 16 | P59: 500 | Q59: 1000
A60: 90214 | B60: 难度3_BOSS关_法术小怪属性 | C60: 3 | D60: 7 | E60: 2 | F60: 21 | G60: 590 | H60: 0 | I60: =FLOOR(I54*1.1,1) -> 64 | J60: 0 | K60: 10000 | L60: 300 | M60: 15000 | N60: =FLOOR(N38*1.3,1) -> 16 | O60: 16 | P60: 500 | Q60: 1000
A61: 90215 | B61: 难度3_BOSS关_物理精英属性 | C61: 3 | D61: 7 | E61: 1 | F61: 22 | G61: 1776 | H61: =FLOOR(H55*1.1,1) -> 123 | I61: 0 | J61: 0 | K61: 10000 | L61: 300 | M61: 15000 | N61: =FLOOR(N39*1.3,1) -> 29 | O61: =FLOOR(O39*1.3,1) -> 29 | P61: 500 | Q61: 1000
A62: 90216 | B62: 难度3_BOSS关_法术精英属性 | C62: 3 | D62: 7 | E62: 1 | F62: 22 | G62: 1776 | H62: =FLOOR(H56*1.1,1) -> 0 | I62: 123 | J62: 0 | K62: 10000 | L62: 300 | M62: 15000 | N62: =FLOOR(N40*1.3,1) -> 29 | O62: =FLOOR(O40*1.3,1) -> 29 | P62: 500 | Q62: 1000
A63: 90217 | B63: 难度3_BOSS关_物理boss属性 | C63: 3 | D63: 7 | E63: 1 | F63: 23 | G63: 12440 | H63: =FLOOR(H57*1.1,1) -> 145 | I63: 0 | J63: 0 | K63: 10000 | L63: 300 | M63: 15000 | N63: =FLOOR(N41*1.3,1) -> 36 | O63: 36 | P63: 500 | Q63: 1000
A64: 90218 | B64: 难度3_BOSS关_法术boss属性 | C64: 3 | D64: 7 | E64: 2 | F64: 23 | G64: 5462 | H64: 0 | I64: =FLOOR(I58*1.1,1) -> 126 | J64: 0 | K64: 10000 | L64: 300 | M64: 15000 | N64: =FLOOR(N42*1.3,1) -> 33 | O64: 33 | P64: 500 | Q64: 1000
A65: 90219 | B65: 难度3_驻守关_物理怪属性 | C65: 3 | D65: 3 | E65: 1 | F65: 22 | G65: 14305 | H65: =FLOOR(H63*1.1,1) -> 159 | I65: 0 | J65: 0 | K65: 10000 | L65: 300 | M65: 15000 | N65: =FLOOR(N43*1.3,1) -> 36 | O65: 36 | P65: 500 | Q65: 1000
A66: 90220 | B66: 难度3_驻守关_法术怪属性 | C66: 3 | D66: 3 | E66: 2 | F66: 22 | G66: 6280 | H66: 0 | I66: =FLOOR(I64*1.1,1) -> 138 | J66: 0 | K66: 10000 | L66: 300 | M66: 15000 | N66: =FLOOR(N44*1.3,1) -> 33 | O66: =FLOOR(O44*1.3,1) -> 33 | P66: 500 | Q66: 1000
A67: 90221 | B67: 难度3_驻守关_物理boss属性 | C67: 3 | D67: 3 | E67: 1 | F67: 23 | G67: 16452 | H67: =FLOOR(H65*1.1,1) -> 174 | I67: 0 | J67: 0 | K67: 10000 | L67: 300 | M67: 15000 | N67: =FLOOR(N45*1.3,1) -> 36 | O67: 36 | P67: 500 | Q67: 1000
A68: 90222 | B68: 难度3_驻守关_法术boss属性 | C68: 3 | D68: 3 | E68: 2 | F68: 23 | G68: 7220 | H68: 0 | I68: =FLOOR(I66*1.1,1) -> 151 | J68: 0 | K68: 10000 | L68: 300 | M68: 15000 | N68: =FLOOR(N46*1.3,1) -> 33 | O68: =FLOOR(O46*1.3,1) -> 33 | P68: 500 | Q68: 1000
A69: 90301 | B69: 难度4_普通关_物理小怪属性 | C69: 4 | D69: 1 | E69: 1 | F69: 21 | G69: =FLOOR(G47*1.8,1) -> 1209 | H69: =FLOOR(H47*1.4,1) -> 98 | I69: 0 | J69: 0 | K69: 10000 | L69: 300 | M69: 15000 | N69: =FLOOR(N47*1.3,1) -> 20 | O69: =FLOOR(O47*1.3,1) -> 20 | P69: 500 | Q69: 1000
A70: 90302 | B70: 难度4_普通关_法术小怪属性 | C70: 4 | D70: 1 | E70: 2 | F70: 21 | G70: =FLOOR(G48*1.8,1) -> 806 | H70: 0 | I70: =FLOOR(I48*1.4,1) -> 75 | J70: 0 | K70: 10000 | L70: 300 | M70: 15000 | N70: =FLOOR(N48*1.3,1) -> 20 | O70: 20 | P70: 500 | Q70: 1000
A71: 90303 | B71: 难度4_普通关_物理精英属性 | C71: 4 | D71: 1 | E71: 1 | F71: 22 | G71: 2419 | H71: =FLOOR(H49*1.4,1) -> 142 | I71: 0 | J71: 0 | K71: 10000 | L71: 300 | M71: 15000 | N71: =FLOOR(N49*1.3,1) -> 37 | O71: =FLOOR(O49*1.3,1) -> 37 | P71: 500 | Q71: 1000
A72: 90304 | B72: 难度4_普通关_法术精英属性 | C72: 4 | D72: 1 | E72: 1 | F72: 22 | G72: 2419 | H72: =FLOOR(H50*1.4,1) -> 0 | I72: 142 | J72: 0 | K72: 10000 | L72: 300 | M72: 15000 | N72: =FLOOR(N50*1.3,1) -> 37 | O72: =FLOOR(O50*1.3,1) -> 37 | P72: 500 | Q72: 1000
A73: 90305 | B73: 难度4_普通关_物理boss属性 | C73: 4 | D73: 1 | E73: 1 | F73: 23 | G73: 16934 | H73: =FLOOR(H51*1.4,1) -> 168 | I73: 0 | J73: 0 | K73: 10000 | L73: 300 | M73: 15000 | N73: =FLOOR(N51*1.3,1) -> 37 | O73: 37 | P73: 500 | Q73: 1000
A74: 90306 | B74: 难度4_普通关_法术boss属性 | C74: 4 | D74: 1 | E74: 2 | F74: 23 | G74: 7437 | H74: 0 | I74: =FLOOR(I52*1.4,1) -> 147 | J74: 0 | K74: 10000 | L74: 300 | M74: 15000 | N74: =FLOOR(N52*1.3,1) -> 37 | O74: 37 | P74: 500 | Q74: 1000
A75: 90307 | B75: 难度4_精英关_物理小怪属性 | C75: 4 | D75: 2 | E75: 1 | F75: 21 | G75: 1389 | H75: =FLOOR(H69*1.2,1) -> 117 | I75: 0 | J75: 0 | K75: 10000 | L75: 300 | M75: 15000 | N75: =FLOOR(N53*1.3,1) -> 20 | O75: 20 | P75: 500 | Q75: 1000
A76: 90308 | B76: 难度4_精英关_法术小怪属性 | C76: 4 | D76: 2 | E76: 2 | F76: 21 | G76: 927 | H76: 0 | I76: =FLOOR(I70*1.2,1) -> 90 | J76: 0 | K76: 10000 | L76: 300 | M76: 15000 | N76: =FLOOR(N54*1.3,1) -> 20 | O76: 20 | P76: 500 | Q76: 1000
A77: 90309 | B77: 难度4_精英关_物理精英属性 | C77: 4 | D77: 2 | E77: 1 | F77: 22 | G77: 2781 | H77: =FLOOR(H71*1.2,1) -> 170 | I77: 0 | J77: 0 | K77: 10000 | L77: 300 | M77: 15000 | N77: =FLOOR(N55*1.3,1) -> 37 | O77: =FLOOR(O55*1.3,1) -> 37 | P77: 500 | Q77: 1000
A78: 90310 | B78: 难度4_精英关_法术精英属性 | C78: 4 | D78: 2 | E78: 1 | F78: 22 | G78: 2781 | H78: =FLOOR(H72*1.2,1) -> 0 | I78: 170 | J78: 0 | K78: 10000 | L78: 300 | M78: 15000 | N78: =FLOOR(N56*1.3,1) -> 37 | O78: =FLOOR(O56*1.3,1) -> 37 | P78: 500 | Q78: 1000
A79: 90311 | B79: 难度4_精英关_物理boss属性 | C79: 4 | D79: 2 | E79: 1 | F79: 23 | G79: 19474 | H79: =FLOOR(H73*1.2,1) -> 201 | I79: 0 | J79: 0 | K79: 10000 | L79: 300 | M79: 15000 | N79: =FLOOR(N57*1.3,1) -> 46 | O79: 46 | P79: 500 | Q79: 1000
A80: 90312 | B80: 难度4_精英关_法术boss属性 | C80: 4 | D80: 2 | E80: 2 | F80: 23 | G80: 8550 | H80: 0 | I80: =FLOOR(I74*1.2,1) -> 176 | J80: 0 | K80: 10000 | L80: 300 | M80: 15000 | N80: =FLOOR(N58*1.3,1) -> 42 | O80: 42 | P80: 500 | Q80: 1000
A81: 90313 | B81: 难度4_BOSS关_物理小怪属性 | C81: 4 | D81: 7 | E81: 1 | F81: 21 | G81: 1594 | H81: =FLOOR(H75*1.2,1) -> 140 | I81: 0 | J81: 0 | K81: 10000 | L81: 300 | M81: 15000 | N81: =FLOOR(N59*1.3,1) -> 20 | O81: 20 | P81: 500 | Q81: 1000
A82: 90314 | B82: 难度4_BOSS关_法术小怪属性 | C82: 4 | D82: 7 | E82: 2 | F82: 21 | G82: 1062 | H82: 0 | I82: =FLOOR(I76*1.2,1) -> 108 | J82: 0 | K82: 10000 | L82: 300 | M82: 15000 | N82: =FLOOR(N60*1.3,1) -> 20 | O82: 20 | P82: 500 | Q82: 1000
A83: 90315 | B83: 难度4_BOSS关_物理精英属性 | C83: 4 | D83: 7 | E83: 1 | F83: 22 | G83: 3196 | H83: =FLOOR(H77*1.2,1) -> 204 | I83: 0 | J83: 0 | K83: 10000 | L83: 300 | M83: 15000 | N83: =FLOOR(N61*1.3,1) -> 37 | O83: =FLOOR(O61*1.3,1) -> 37 | P83: 500 | Q83: 1000
A84: 90316 | B84: 难度4_BOSS关_法术精英属性 | C84: 4 | D84: 7 | E84: 1 | F84: 22 | G84: 3196 | H84: =FLOOR(H78*1.2,1) -> 0 | I84: 204 | J84: 0 | K84: 10000 | L84: 300 | M84: 15000 | N84: =FLOOR(N62*1.3,1) -> 37 | O84: =FLOOR(O62*1.3,1) -> 37 | P84: 500 | Q84: 1000
A85: 90317 | B85: 难度4_BOSS关_物理boss属性 | C85: 4 | D85: 7 | E85: 1 | F85: 23 | G85: 22392 | H85: =FLOOR(H79*1.2,1) -> 241 | I85: 0 | J85: 0 | K85: 10000 | L85: 300 | M85: 15000 | N85: =FLOOR(N63*1.3,1) -> 46 | O85: 46 | P85: 500 | Q85: 1000
A86: 90318 | B86: 难度4_BOSS关_法术boss属性 | C86: 4 | D86: 7 | E86: 2 | F86: 23 | G86: 9831 | H86: 0 | I86: =FLOOR(I80*1.2,1) -> 211 | J86: 0 | K86: 10000 | L86: 300 | M86: 15000 | N86: =FLOOR(N64*1.3,1) -> 42 | O86: 42 | P86: 500 | Q86: 1000
A87: 90319 | B87: 难度4_驻守关_物理怪属性 | C87: 4 | D87: 3 | E87: 1 | F87: 22 | G87: 25749 | H87: =FLOOR(H85*1.2,1) -> 289 | I87: 0 | J87: 0 | K87: 10000 | L87: 300 | M87: 15000 | N87: =FLOOR(N65*1.3,1) -> 46 | O87: 46 | P87: 500 | Q87: 1000
A88: 90320 | B88: 难度4_驻守关_法术怪属性 | C88: 4 | D88: 3 | E88: 2 | F88: 22 | G88: 11304 | H88: 0 | I88: =FLOOR(I86*1.1,1) -> 232 | J88: 0 | K88: 10000 | L88: 300 | M88: 15000 | N88: =FLOOR(N66*1.3,1) -> 42 | O88: =FLOOR(O66*1.3,1) -> 42 | P88: 500 | Q88: 1000
A89: 90321 | B89: 难度4_驻守关_物理boss属性 | C89: 4 | D89: 3 | E89: 1 | F89: 23 | G89: 29613 | H89: =FLOOR(H87*1.2,1) -> 346 | I89: 0 | J89: 0 | K89: 10000 | L89: 300 | M89: 15000 | N89: =FLOOR(N67*1.3,1) -> 46 | O89: 46 | P89: 500 | Q89: 1000
A90: 90322 | B90: 难度4_驻守关_法术boss属性 | C90: 4 | D90: 3 | E90: 2 | F90: 23 | G90: 12996 | H90: 0 | I90: =FLOOR(I88*1.1,1) -> 255 | J90: 0 | K90: 10000 | L90: 300 | M90: 15000 | N90: =FLOOR(N68*1.3,1) -> 42 | O90: =FLOOR(O68*1.3,1) -> 42 | P90: 500 | Q90: 1000
A91: 90401 | B91: 难度5_普通关_物理小怪属性 | C91: 5 | D91: 1 | E91: 1 | F91: 21 | G91: =FLOOR(G69*2,1) -> 2418 | H91: =FLOOR(H69*1.5,1) -> 147 | I91: 0 | J91: 0 | K91: 10000 | L91: 300 | M91: 15000 | N91: =FLOOR(N69*1.3,1) -> 26 | O91: =FLOOR(O69*1.3,1) -> 26 | P91: 500 | Q91: 1000
A92: 90402 | B92: 难度5_普通关_法术小怪属性 | C92: 5 | D92: 1 | E92: 2 | F92: 21 | G92: =FLOOR(G70*2,1) -> 1612 | H92: 0 | I92: =FLOOR(I70*1.5,1) -> 112 | J92: 0 | K92: 10000 | L92: 300 | M92: 15000 | N92: =FLOOR(N70*1.3,1) -> 26 | O92: 26 | P92: 500 | Q92: 1000
A93: 90403 | B93: 难度5_普通关_物理精英属性 | C93: 5 | D93: 1 | E93: 1 | F93: 22 | G93: 4838 | H93: =FLOOR(H71*1.5,1) -> 213 | I93: 0 | J93: 0 | K93: 10000 | L93: 300 | M93: 15000 | N93: =FLOOR(N71*1.3,1) -> 48 | O93: =FLOOR(O71*1.3,1) -> 48 | P93: 500 | Q93: 1000
A94: 90404 | B94: 难度5_普通关_法术精英属性 | C94: 5 | D94: 1 | E94: 1 | F94: 22 | G94: 4838 | H94: =FLOOR(H72*1.5,1) -> 0 | I94: 213 | J94: 0 | K94: 10000 | L94: 300 | M94: 15000 | N94: =FLOOR(N72*1.3,1) -> 48 | O94: =FLOOR(O72*1.3,1) -> 48 | P94: 500 | Q94: 1000
A95: 90405 | B95: 难度5_普通关_物理boss属性 | C95: 5 | D95: 1 | E95: 1 | F95: 23 | G95: 33868 | H95: =FLOOR(H73*1.5,1) -> 252 | I95: 0 | J95: 0 | K95: 10000 | L95: 300 | M95: 15000 | N95: =FLOOR(N73*1.3,1) -> 48 | O95: 48 | P95: 500 | Q95: 1000
A96: 90406 | B96: 难度5_普通关_法术boss属性 | C96: 5 | D96: 1 | E96: 2 | F96: 23 | G96: 14874 | H96: 0 | I96: =FLOOR(I74*1.5,1) -> 220 | J96: 0 | K96: 10000 | L96: 300 | M96: 15000 | N96: =FLOOR(N74*1.3,1) -> 48 | O96: 48 | P96: 500 | Q96: 1000
A97: 90407 | B97: 难度5_精英关_物理小怪属性 | C97: 5 | D97: 2 | E97: 1 | F97: 21 | G97: 2778 | H97: =FLOOR(H75*1.4,1) -> 163 | I97: 0 | J97: 0 | K97: 10000 | L97: 300 | M97: 15000 | N97: =FLOOR(N75*1.3,1) -> 26 | O97: 26 | P97: 500 | Q97: 1000
A98: 90408 | B98: 难度5_精英关_法术小怪属性 | C98: 5 | D98: 2 | E98: 2 | F98: 21 | G98: 1854 | H98: 0 | I98: =FLOOR(I76*1.4,1) -> 126 | J98: 0 | K98: 10000 | L98: 300 | M98: 15000 | N98: =FLOOR(N76*1.3,1) -> 26 | O98: 26 | P98: 500 | Q98: 1000
A99: 90409 | B99: 难度5_精英关_物理精英属性 | C99: 5 | D99: 2 | E99: 1 | F99: 22 | G99: 5562 | H99: =FLOOR(H77*1.4,1) -> 238 | I99: 0 | J99: 0 | K99: 10000 | L99: 300 | M99: 15000 | N99: =FLOOR(N77*1.3,1) -> 48 | O99: =FLOOR(O77*1.3,1) -> 48 | P99: 500 | Q99: 1000
A100: 90410 | B100: 难度5_精英关_法术精英属性 | C100: 5 | D100: 2 | E100: 1 | F100: 22 | G100: 5562 | H100: =FLOOR(H78*1.4,1) -> 0 | I100: 238 | J100: 0 | K100: 10000 | L100: 300 | M100: 15000 | N100: =FLOOR(N78*1.3,1) -> 48 | O100: =FLOOR(O78*1.3,1) -> 48 | P100: 500 | Q100: 1000
A101: 90411 | B101: 难度5_精英关_物理boss属性 | C101: 5 | D101: 2 | E101: 1 | F101: 23 | G101: 38948 | H101: =FLOOR(H79*1.4,1) -> 281 | I101: 0 | J101: 0 | K101: 10000 | L101: 300 | M101: 15000 | N101: =FLOOR(N79*1.3,1) -> 59 | O101: 59 | P101: 500 | Q101: 1000
A102: 90412 | B102: 难度5_精英关_法术boss属性 | C102: 5 | D102: 2 | E102: 2 | F102: 23 | G102: 17100 | H102: 0 | I102: =FLOOR(I80*1.4,1) -> 246 | J102: 0 | K102: 10000 | L102: 300 | M102: 15000 | N102: =FLOOR(N80*1.3,1) -> 54 | O102: 54 | P102: 500 | Q102: 1000
A103: 90413 | B103: 难度5_BOSS关_物理小怪属性 | C103: 5 | D103: 7 | E103: 1 | F103: 21 | G103: 3188 | H103: =FLOOR(H81*1.4,1) -> 196 | I103: 0 | J103: 0 | K103: 10000 | L103: 300 | M103: 15000 | N103: =FLOOR(N81*1.3,1) -> 26 | O103: 26 | P103: 500 | Q103: 1000
A104: 90414 | B104: 难度5_BOSS关_法术小怪属性 | C104: 5 | D104: 7 | E104: 2 | F104: 21 | G104: 2124 | H104: 0 | I104: =FLOOR(I82*1.4,1) -> 151 | J104: 0 | K104: 10000 | L104: 300 | M104: 15000 | N104: =FLOOR(N82*1.3,1) -> 26 | O104: 26 | P104: 500 | Q104: 1000
A105: 90415 | B105: 难度5_BOSS关_物理精英属性 | C105: 5 | D105: 7 | E105: 1 | F105: 22 | G105: 6392 | H105: =FLOOR(H83*1.4,1) -> 285 | I105: 0 | J105: 0 | K105: 10000 | L105: 300 | M105: 15000 | N105: =FLOOR(N83*1.3,1) -> 48 | O105: =FLOOR(O83*1.3,1) -> 48 | P105: 500 | Q105: 1000
A106: 90416 | B106: 难度5_BOSS关_法术精英属性 | C106: 5 | D106: 7 | E106: 1 | F106: 22 | G106: 6392 | H106: =FLOOR(H84*1.4,1) -> 0 | I106: 285 | J106: 0 | K106: 10000 | L106: 300 | M106: 15000 | N106: =FLOOR(N84*1.3,1) -> 48 | O106: =FLOOR(O84*1.3,1) -> 48 | P106: 500 | Q106: 1000
A107: 90417 | B107: 难度5_BOSS关_物理boss属性 | C107: 5 | D107: 7 | E107: 1 | F107: 23 | G107: 44784 | H107: =FLOOR(H85*1.4,1) -> 337 | I107: 0 | J107: 0 | K107: 10000 | L107: 300 | M107: 15000 | N107: =FLOOR(N85*1.3,1) -> 59 | O107: 59 | P107: 500 | Q107: 1000
A108: 90418 | B108: 难度5_BOSS关_法术boss属性 | C108: 5 | D108: 7 | E108: 2 | F108: 23 | G108: 19662 | H108: 0 | I108: =FLOOR(I86*1.4,1) -> 295 | J108: 0 | K108: 10000 | L108: 300 | M108: 15000 | N108: =FLOOR(N86*1.3,1) -> 54 | O108: 54 | P108: 500 | Q108: 1000
A109: 90419 | B109: 难度5_驻守关_物理怪属性 | C109: 5 | D109: 3 | E109: 1 | F109: 22 | G109: 51498 | H109: =FLOOR(H107*1.3,1) -> 438 | I109: 0 | J109: 0 | K109: 10000 | L109: 300 | M109: 15000 | N109: =FLOOR(N87*1.3,1) -> 59 | O109: 59 | P109: 500 | Q109: 1000
A110: 90420 | B110: 难度5_驻守关_法术怪属性 | C110: 5 | D110: 3 | E110: 2 | F110: 22 | G110: 22608 | H110: 0 | I110: =FLOOR(I108*1.3,1) -> 383 | J110: 0 | K110: 10000 | L110: 300 | M110: 15000 | N110: =FLOOR(N88*1.3,1) -> 54 | O110: =FLOOR(O88*1.3,1) -> 54 | P110: 500 | Q110: 1000
A111: 90421 | B111: 难度5_驻守关_物理boss属性 | C111: 5 | D111: 3 | E111: 1 | F111: 23 | G111: 59226 | H111: =FLOOR(H109*1.3,1) -> 569 | I111: 0 | J111: 0 | K111: 10000 | L111: 300 | M111: 15000 | N111: =FLOOR(N89*1.3,1) -> 59 | O111: 59 | P111: 500 | Q111: 1000
A112: 90422 | B112: 难度5_驻守关_法术boss属性 | C112: 5 | D112: 3 | E112: 2 | F112: 23 | G112: 25992 | H112: 0 | I112: =FLOOR(I110*1.3,1) -> 497 | J112: 0 | K112: 10000 | L112: 300 | M112: 15000 | N112: =FLOOR(N90*1.3,1) -> 54 | O112: =FLOOR(O90*1.3,1) -> 54 | P112: 500 | Q112: 1000
A113: 90501 | B113: 难度6_普通关_物理小怪属性 | C113: 6 | D113: 1 | E113: 1 | F113: 21 | G113: =FLOOR(G91*2.5,1) -> 6045 | H113: =FLOOR(H91*1.5,1) -> 220 | I113: 0 | J113: 0 | K113: 10000 | L113: 300 | M113: 15000 | N113: =FLOOR(N91*1.3,1) -> 33 | O113: =FLOOR(O91*1.3,1) -> 33 | P113: 500 | Q113: 1000
A114: 90502 | B114: 难度6_普通关_法术小怪属性 | C114: 6 | D114: 1 | E114: 2 | F114: 21 | G114: =FLOOR(G92*2.5,1) -> 4030 | H114: 0 | I114: =FLOOR(I92*1.5,1) -> 168 | J114: 0 | K114: 10000 | L114: 300 | M114: 15000 | N114: =FLOOR(N92*1.3,1) -> 33 | O114: 33 | P114: 500 | Q114: 1000
A115: 90503 | B115: 难度6_普通关_物理精英属性 | C115: 6 | D115: 1 | E115: 1 | F115: 22 | G115: 12095 | H115: =FLOOR(H93*1.5,1) -> 319 | I115: 0 | J115: 0 | K115: 10000 | L115: 300 | M115: 15000 | N115: =FLOOR(N93*1.3,1) -> 62 | O115: =FLOOR(O93*1.3,1) -> 62 | P115: 500 | Q115: 1000
A116: 90504 | B116: 难度6_普通关_法术精英属性 | C116: 6 | D116: 1 | E116: 1 | F116: 22 | G116: 12095 | H116: =FLOOR(H94*1.5,1) -> 0 | I116: 319 | J116: 0 | K116: 10000 | L116: 300 | M116: 15000 | N116: =FLOOR(N94*1.3,1) -> 62 | O116: =FLOOR(O94*1.3,1) -> 62 | P116: 500 | Q116: 1000
A117: 90505 | B117: 难度6_普通关_物理boss属性 | C117: 6 | D117: 1 | E117: 1 | F117: 23 | G117: 84670 | H117: =FLOOR(H95*1.5,1) -> 378 | I117: 0 | J117: 0 | K117: 10000 | L117: 300 | M117: 15000 | N117: =FLOOR(N95*1.3,1) -> 62 | O117: 62 | P117: 500 | Q117: 1000
A118: 90506 | B118: 难度6_普通关_法术boss属性 | C118: 6 | D118: 1 | E118: 2 | F118: 23 | G118: 37185 | H118: 0 | I118: =FLOOR(I96*1.5,1) -> 330 | J118: 0 | K118: 10000 | L118: 300 | M118: 15000 | N118: =FLOOR(N96*1.3,1) -> 62 | O118: 62 | P118: 500 | Q118: 1000
A119: 90507 | B119: 难度6_精英关_物理小怪属性 | C119: 6 | D119: 2 | E119: 1 | F119: 21 | G119: 6945 | H119: =FLOOR(H97*1.4,1) -> 228 | I119: 0 | J119: 0 | K119: 10000 | L119: 300 | M119: 15000 | N119: =FLOOR(N97*1.3,1) -> 33 | O119: 33 | P119: 500 | Q119: 1000
A120: 90508 | B120: 难度6_精英关_法术小怪属性 | C120: 6 | D120: 2 | E120: 2 | F120: 21 | G120: 4635 | H120: 0 | I120: =FLOOR(I98*1.4,1) -> 176 | J120: 0 | K120: 10000 | L120: 300 | M120: 15000 | N120: =FLOOR(N98*1.3,1) -> 33 | O120: 33 | P120: 500 | Q120: 1000
A121: 90509 | B121: 难度6_精英关_物理精英属性 | C121: 6 | D121: 2 | E121: 1 | F121: 22 | G121: 13905 | H121: =FLOOR(H99*1.4,1) -> 333 | I121: 0 | J121: 0 | K121: 10000 | L121: 300 | M121: 15000 | N121: =FLOOR(N99*1.3,1) -> 62 | O121: =FLOOR(O99*1.3,1) -> 62 | P121: 500 | Q121: 1000
A122: 90510 | B122: 难度6_精英关_法术精英属性 | C122: 6 | D122: 2 | E122: 1 | F122: 22 | G122: 13905 | H122: =FLOOR(H100*1.4,1) -> 0 | I122: 333 | J122: 0 | K122: 10000 | L122: 300 | M122: 15000 | N122: =FLOOR(N100*1.3,1) -> 62 | O122: =FLOOR(O100*1.3,1) -> 62 | P122: 500 | Q122: 1000
A123: 90511 | B123: 难度6_精英关_物理boss属性 | C123: 6 | D123: 2 | E123: 1 | F123: 23 | G123: 97370 | H123: =FLOOR(H101*1.4,1) -> 393 | I123: 0 | J123: 0 | K123: 10000 | L123: 300 | M123: 15000 | N123: =FLOOR(N101*1.3,1) -> 76 | O123: 76 | P123: 500 | Q123: 1000
A124: 90512 | B124: 难度6_精英关_法术boss属性 | C124: 6 | D124: 2 | E124: 2 | F124: 23 | G124: 42750 | H124: 0 | I124: =FLOOR(I102*1.4,1) -> 344 | J124: 0 | K124: 10000 | L124: 300 | M124: 15000 | N124: =FLOOR(N102*1.3,1) -> 70 | O124: 70 | P124: 500 | Q124: 1000
A125: 90513 | B125: 难度6_BOSS关_物理小怪属性 | C125: 6 | D125: 7 | E125: 1 | F125: 21 | G125: 7970 | H125: =FLOOR(H103*1.4,1) -> 274 | I125: 0 | J125: 0 | K125: 10000 | L125: 300 | M125: 15000 | N125: =FLOOR(N103*1.3,1) -> 33 | O125: 33 | P125: 500 | Q125: 1000
A126: 90514 | B126: 难度6_BOSS关_法术小怪属性 | C126: 6 | D126: 7 | E126: 2 | F126: 21 | G126: 5310 | H126: 0 | I126: =FLOOR(I104*1.4,1) -> 211 | J126: 0 | K126: 10000 | L126: 300 | M126: 15000 | N126: =FLOOR(N104*1.3,1) -> 33 | O126: 33 | P126: 500 | Q126: 1000
A127: 90515 | B127: 难度6_BOSS关_物理精英属性 | C127: 6 | D127: 7 | E127: 1 | F127: 22 | G127: 15980 | H127: =FLOOR(H105*1.4,1) -> 399 | I127: 0 | J127: 0 | K127: 10000 | L127: 300 | M127: 15000 | N127: =FLOOR(N105*1.3,1) -> 62 | O127: =FLOOR(O105*1.3,1) -> 62 | P127: 500 | Q127: 1000
A128: 90516 | B128: 难度6_BOSS关_法术精英属性 | C128: 6 | D128: 7 | E128: 1 | F128: 22 | G128: 15980 | H128: =FLOOR(H106*1.4,1) -> 0 | I128: 399 | J128: 0 | K128: 10000 | L128: 300 | M128: 15000 | N128: =FLOOR(N106*1.3,1) -> 62 | O128: =FLOOR(O106*1.3,1) -> 62 | P128: 500 | Q128: 1000
A129: 90517 | B129: 难度6_BOSS关_物理boss属性 | C129: 6 | D129: 7 | E129: 1 | F129: 23 | G129: 111960 | H129: =FLOOR(H107*1.4,1) -> 471 | I129: 0 | J129: 0 | K129: 10000 | L129: 300 | M129: 15000 | N129: =FLOOR(N107*1.3,1) -> 76 | O129: 76 | P129: 500 | Q129: 1000
A130: 90518 | B130: 难度6_BOSS关_法术boss属性 | C130: 6 | D130: 7 | E130: 2 | F130: 23 | G130: 49155 | H130: 0 | I130: =FLOOR(I108*1.4,1) -> 413 | J130: 0 | K130: 10000 | L130: 300 | M130: 15000 | N130: =FLOOR(N108*1.3,1) -> 70 | O130: 70 | P130: 500 | Q130: 1000
A131: 90519 | B131: 难度6_驻守关_物理怪属性 | C131: 6 | D131: 3 | E131: 1 | F131: 22 | G131: 128745 | H131: =FLOOR(H129*1.3,1) -> 612 | I131: 0 | J131: 0 | K131: 10000 | L131: 300 | M131: 15000 | N131: =FLOOR(N109*1.3,1) -> 76 | O131: 76 | P131: 500 | Q131: 1000
A132: 90520 | B132: 难度6_驻守关_法术怪属性 | C132: 6 | D132: 3 | E132: 2 | F132: 22 | G132: 56520 | H132: 0 | I132: =FLOOR(I130*1.3,1) -> 536 | J132: 0 | K132: 10000 | L132: 300 | M132: 15000 | N132: =FLOOR(N110*1.3,1) -> 70 | O132: =FLOOR(O110*1.3,1) -> 70 | P132: 500 | Q132: 1000
A133: 90521 | B133: 难度6_驻守关_物理BOSS属性 | C133: 6 | D133: 3 | E133: 1 | F133: 23 | G133: 148065 | H133: =FLOOR(H131*1.3,1) -> 795 | I133: 0 | J133: 0 | K133: 10000 | L133: 300 | M133: 15000 | N133: =FLOOR(N111*1.3,1) -> 76 | O133: 76 | P133: 500 | Q133: 1000
A134: 90522 | B134: 难度6_驻守关_法术BOSS属性 | C134: 6 | D134: 3 | E134: 2 | F134: 23 | G134: 64980 | H134: 0 | I134: =FLOOR(I132*1.3,1) -> 696 | J134: 0 | K134: 10000 | L134: 300 | M134: 15000 | N134: =FLOOR(N112*1.3,1) -> 70 | O134: =FLOOR(O112*1.3,1) -> 70 | P134: 500 | Q134: 1000

Sheet Sheet1
